Cogmind - Beta 14 @@@ ROGUE MODE // 2024.09.07 @ 17:11:10 Player: CONM Result: Destroyed by S-10 Pest with Light Assault Rifle Performance ------------- Evolutions (1) 500 Regions Visited (2) 400 Robots Destroyed (22) 110 Value Destroyed (598) 598 Prototype IDs (2) 40 Alien Tech Used (0) 0 Bonus (0) 0 TOTAL SCORE: 1648 Bonus ------- None Cogmind --------- Core Integrity 0/400 Matter 290/300 Energy 47/100 System Corruption 1% Temperature Cool (36) Movement Core (400) Ox7 Location -9/Materials Parts ------- > --- POWER (1) -------- (None) > --- PROPULSION (3) --- (None) > --- UTILITY (3) ------ Disposable Heat Sink Large Storage Unit > --- WEAPON (2) ------- Beam Rifle > --- INVENTORY (15) --- Light Treads Disposable Heat Sink Disposable Heat Sink Disposable Heat Sink Small Storage Unit Improved Terrain Scanner Seismic Detector Melee Analysis Suite Light Armor Plating Hardened Light Armor Plating Hardened Light Armor Plating Shield Generator Shield Generator Peak State ------------ > --- POWER ------------ Light Ion Engine > --- PROPULSION ------- Aluminum Leg Aluminum Leg Aluminum Leg > --- UTILITY ---------- Disposable Heat Sink High-capacity Storage Unit Hardened Light Armor Plating > --- WEAPON ----------- Medium Laser Beam Rifle > --- INVENTORY -------- Light Treads Disposable Heat Sink Disposable Heat Sink Disposable Heat Sink Small Storage Unit Improved Terrain Scanner Seismic Detector Melee Analysis Suite Light Armor Plating Hardened Light Armor Plating Shield Generator Shield Generator Small Laser Beam Rifle [Rating: 14] Favorites ----------- Power Ion Engine Engine Ion Engine Propulsion Aluminum Leg Treads Light Treads Leg Aluminum Leg Utility High-capacity Storage Unit Device Disposable Heat Sink Storage High-capacity Storage Unit Protection Hardened Light Armor Plating Weapon Medium Laser Energy Gun Medium Laser Ballistic Gun Light Assault Rifle Build | -11 -10 -9 ------- Run | Yrd Mat Mat Slots Evolved 2 | . . 2 Power . | . . . Propulsion 1 | . . 1 Utility 1 | . . 1 Weapon . | . . . Parts Attached 23 | 8 4 11 Power 3 | 1 . 2 Engine 3 | 1 . 2 Core . | . . . Reactor . | . . . Propulsion 9 | 2 2 5 Treads 4 | . 2 2 Leg 5 | 2 . 3 Wheel . | . . . Hover . | . . . Flight . | . . . Utility 6 | 2 2 2 Device 2 | 1 1 . Storage 3 | 1 1 1 Processor . | . . . Hackware . | . . . Protection 1 | . . 1 Artifact . | . . . Weapon 5 | 3 . 2 Energy Gun 4 | 2 . 2 Energy Cannon . | . . . Ballistic Gun 1 | 1 . . Ballistic Cannon . | . . . Launcher . | . . . Special Weapon . | . . . Impact Weapon . | . . . Slashing Weapon . | . . . Piercing Weapon . | . . . Special Melee Weapon . | . . . Unidentified Prototypes . | . . . Parts Lost 10 | . . 10 Power 3 | . . 3 Propulsion 5 | . . 5 Utility . | . . . Weapon 2 | . . 2 Highest Loss Streak 5 | . . 5 To Critical Strikes 2 | . . 2 Average Slot Usage (%) 85 | . 100 79 Engine 9 | . 14 7 Treads 14 | . 25 8 Leg 9 | . 2 12 Device 11 | . 14 11 Storage 11 | . 14 11 Protection 4 | . . 7 Energy Gun 23 | . 28 21 Peak Build Rating 14 | 7 9 14 Average Rating 9 | 5 7 11 On Entrance 5 | . 7 9 Naked Turns . | . . . Heaviest Build 54 | 14 49 54 Greatest Support 40 | 20 40 40 Greatest Overweight (x) 17 | 1 1 17 Average Overweight (x) . | . . 1 Largest Inventory Capacity 20 | 8 20 20 Average Capacity 17 | 7 18 18 Most Carried 16 | 4 9 16 Average Carried 9 | 2 5 13 Final Capacity 20 | 8 20 15 Final Carried 13 | 4 9 13 Class Distribution -------------------- 100% | Mutant Dominant Class ---------------- Mutant | -10/Materials Mutant | -9/Materials Resources | -11 -10 -9 ----------- Run | Yrd Mat Mat Matter Collected 390 | 250 60 80 Remotely . | . . . Salvage Created 805 | 43 217 545 Parts 39 | 4 6 29 Haulers Intercepted . | . . . Recyclers Shooed 2 | 1 1 . Parts Field Recycled . | . . . Retrieved Matter . | . . . Parts Self-Destructed . | . . . Prevented . | . . . Kills | -11 -10 -9 ------- Run | Yrd Mat Mat Combat Hostiles Destroyed 19 | . 3 16 Guns 19 | . 3 16 Classes Destroyed 7 | 1 2 4 Tunneler 2 | 2 . . Recycler 1 | . 1 . Swarmer 5 | . . 5 Grunt 11 | . 3 8 Brawler 1 | . . 1 Duelist 1 | . . 1 Sentry 1 | . . 1 Best Kill Streak 3 | 1 3 3 Combat Bots Only 3 | . 2 3 Max Kills in Single Turn 2 | 1 1 2 Gunslinging 1 | . . 1 Exploded . | . . . Melee . | . . . Uniques/NPCs Destroyed . | . . . Combat | -11 -10 -9 -------- Run | Yrd Mat Mat Hostile Shots Fired 226 | . 22 204 Missed 67 | . 6 61 Damage Taken 1812 | . 225 1587 Core 424 | . 22 402 Absorbed by Shields . | . . . Core Remaining (%) 95 | 100 91 . Volleys Fired 77 | 11 14 52 Largest 2 | 2 2 2 Hottest 90 | 90 90 90 Shots Fired 142 | 22 28 92 Gun 142 | 22 28 92 Cannon . | . . . Launcher . | . . . Special . | . . . Kinetic . | . . . Thermal 142 | 22 28 92 Explosive . | . . . Electromagnetic . | . . . Robot Hit Streak 8 | 4 6 8 Robot Miss Streak 4 | 4 3 2 Penetration Max . | . . . Secondary Targets 2 | . . 2 Max Gunslinging Chain 1 | . . 1 Shots Hit Robots 91 | 13 15 63 Core Hits 42 | 2 9 31 Critical Kills . | . . . Critical Parts Destroyed . | . . . Critical Strikes 3 | . . 3 Burn 3 | . . 3 Melee Attacks . | . . . Impact . | . . . Slashing . | . . . Piercing . | . . . Sneak Attacks . | . . . Combat Hostiles . | . . . Follow-up Attacks . | . . . Damage Inflicted 1092 | 153 177 762 Guns 1092 | 153 177 762 Cannons . | . . . Explosions . | . . . Melee . | . . . Ramming . | . . . Kinetic . | . . . Thermal 1092 | 153 177 762 Explosive . | . . . Electromagnetic . | . . . Impact . | . . . Slashing . | . . . Piercing . | . . . Highest Corruption 1 | . . 1 Average Corruption 1 | . . 1 Corruption Purged . | . . . Corruption Blocked . | . . . Effects 2 | . . 2 Message Errors 1 | . . 1 Matter Fused 1 | . . 1 Overload Shots . | . . . Overflow Damage . | . . . Projectiles . | . . . Explosions . | . . . Melee . | . . . Knockbacks . | . . . Impact . | . . . Kinetic . | . . . Secondary . | . . . Self-Inflicted Damage . | . . . Shots . | . . . Rammed . | . . . Targets Rammed . | . . . Kicked . | . . . Crushed . | . . . Highest Temperature 319 | 90 319 196 Average Temperature 84 | 33 150 73 Received Heat Transfer 690 | . 159 531 Effects 3 | . 3 . Interference 3 | . 3 . Siege Activations . | . . . Robots Corrupted . | . . . Combat Hostiles . | . . . Parts Fried . | . . . Impact Corruptions . | . . . Robots Melted . | . . . Combat Hostiles . | . . . Parts Melted 10 | . 3 7 Heat Transferred 3085 | 397 459 2229 Parts Sabotaged . | . . . Parts Stolen . | . . . Parts Stripped . | . . . Power Chain Reactions . | . . . Alert | -11 -10 -9 ------- Run | Yrd Mat Mat Peak Influence 325 | 10 86 325 Initial 35 | . 6 35 Average 135 | 1 58 206 Maximum Alert Level 1 | . . 1 Low Security (%) 67 | 100 100 44 Level 1 32 | . . 55 Level 2 . | . . . Level 3 . | . . . Level 4 . | . . . Level 5 . | . . . High Security . | . . . Max Security . | . . . Squads Dispatched 1 | . . 1 Investigation 1 | . . 1 Extermination . | . . . Reinforcement . | . . . Assault . | . . . Garrison . | . . . Intercept . | . . . Searches Triggered . | . . . Construction Impeded . | . . . Haulers Reinforced . | . . . Active Scanning Responses . | . . . Cargo Convoy Interrupts . | . . . Stealth | -11 -10 -9 --------- Run | Yrd Mat Mat Distress Signals 4 | . . 4 Communications Jammed . | . . . Distress Signals . | . . . Times Spotted 38 | . 5 33 Peak Tracking Total 10 | . 2 10 Tactical Retreats 3 | . . 3 Traps | -11 -10 -9 ------- Run | Yrd Mat Mat Traps Triggered 2 | . . 2 Indirectly . | . . . Trap Hack Attempts . | . . . Triggered . | . . . Disarmed . | . . . Reprogrammed . | . . . Reused . | . . . Traps Extracted . | . . . Installed . | . . . Triggered . | . . . Machines | -11 -10 -9 ---------- Run | Yrd Mat Mat Machines Disabled . | . . . Max in Single Turn . | . . . Machines Repaired . | . . . Machines Dismantled . | . . . Machines Sabotaged . | . . . Overloaded Fab Kills . | . . . Hacking | -11 -10 -9 --------- Run | Yrd Mat Mat Machines Accessed 7 | . 3 4 Terminals 6 | . 3 3 Fabricators . | . . . Repair Stations . | . . . Recycling Units . | . . . Scanalyzers 1 | . . 1 Garrison Access . | . . . Total Hacks 16 | . 3 13 Successful 10 | . 2 8 Failed 6 | . 1 5 Catastrophic 1 | . 1 . Database Lockouts . | . . . Manual 7 | . 2 5 Terminals 13 | . 3 10 Fabricators . | . . . Repair Stations . | . . . Recycling Units . | . . . Scanalyzers 3 | . . 3 Garrison Access . | . . . Terminal Hacks 3 | . . 3 Prototype ID Bank 1 | . . 1 Maintenance Status 1 | . . 1 Zone Layout 1 | . . 1 Fabricator Hacks . | . . . Repair Station Hacks . | . . . Recycling Unit Hacks . | . . . Scanalyzer 3 | . . 3 Insert Component 1 | . . 1 Analyze 2 | . . 2 Garrison Access Hacks . | . . . Unauthorized Hacks 4 | . 2 2 Terminals 4 | . 2 2 Botnet 4 | . 2 2 Fabricators . | . . . Repair Stations . | . . . Recycling Units . | . . . Scanalyzers . | . . . Garrison Access . | . . . Data Cores Recovered . | . . . Used . | . . . Hacking Detections 4 | . 1 3 Full Trace Events . | . . . Feedback Events . | . . . Feedback Blocked . | . . . Robot Schematics Acquired . | . . . Robots Built . | . . . Authchips . | . . . Time . | . . . Total Robot Build Rating . | . . . Part Schematics Acquired 1 | . . 1 Parts Built . | . . . Authchips . | . . . Time . | . . . Total Part Build Rating . | . . . Parts Repaired . | . . . Time . | . . . Parts Recycled . | . . . Recycled Matter . | . . . Retrieved Matter . | . . . Retrieved Components . | . . . Parts Scanalyzed 1 | . . 1 Part Schematics Acquired 1 | . . 1 Parts Damaged . | . . . Bothacking | -11 -10 -9 ------------ Run | Yrd Mat Mat Used RIF Installer . | . . . Robots Hacked . | . . . Non-combat . | . . . Combat . | . . . Robot Hacks Applied . | . . . Relay Couplers Released . | . . . Fabnet Peak Effective % . | . . . Robots Rewired . | . . . Allies Hacked . | . . . Hacks Repelled . | . . . Allies | -11 -10 -9 -------- Run | Yrd Mat Mat Total Allies . | . . . Largest Group . | . . . Highest-Rated Group . | . . . Highest-Rated Ally . | . . . Total Orders . | . . . Ally Attacks . | . . . Total Damage . | . . . Kills . | . . . Allies Corrupted . | . . . Allies Melted . | . . . Intel | -11 -10 -9 ------- Run | Yrd Mat Mat Robot Analysis Total . | . . . Derelict Logs Recovered . | . . . Drone Launches . | . . . Drone Recoveries . | . . . Exploration | -11 -10 -9 ------------- Run | Yrd Mat Mat Turns Passed 1473 | 221 397 855 Spaces Moved 586 | 146 159 281 Core 12 | 9 . 3 Treads 255 | . 130 125 Legs 319 | 137 29 153 Wheels . | . . . Hover . | . . . Flight . | . . . Fastest Speed 50 | 50 120 120 Average Speed 191 | 116 218 215 Slowest Speed 900 | 120 240 900 Overloaded Moves . | . . . Propulsion Burnouts . | . . . Robots Hopped . | . . . Cave-ins Triggered . | . . . Exploration Rate (%) 21 | 7 28 28 Regions Visited 2 Branch Regions . Pre-discovered Areas . | . . . Known Exits Taken . | . . . Unknown Exits Taken 2 | 1 1 . Scrap Searched . | . . . Spaces Dug . | . . . Terrain Destroyed . | . . . Melee . | . . . Projectile . | . . . AOE . | . . . Terrain Rammed . | . . . Walls Destroyed . | . . . Machines Disabled . | . . . Actions | -11 -10 -9 --------- Run | Yrd Mat Mat Total 786 | 171 180 435 Wait 84 | 2 . 82 Move 584 | 145 158 281 Hop . | . . . Pick Up 15 | 4 4 7 Fast Attach 12 | 8 . 4 Attach 4 | . . 4 Detach 1 | . . 1 Swap 7 | . 4 3 Drop 2 | 1 . 1 Fire 77 | 11 14 52 Melee . | . . . Ram . | . . . Kick . | . . . Crush . | . . . Escape Stasis . | . . . Rewire . | . . . Trap . | . . . Miscellaneous . | . . . Route ------- -11/Scrapyard -10/Materials -9/Materials History --------- Turn | Location | Event 4 | -11/Scrapyard | Discovered new exit (range 16) 222 | -11/Scrapyard | Entered Materials 300 | -10/Materials | Build established: Mutant 573 | -10/Materials | Discovered new exit (range 16) 619 | -10/Materials | Entered another Materials area 619 | -9/Materials | Evolved 2 slots: Propulsion x1, Utility x1 1099 | -9/Materials | Core integrity fell below 50% 1457 | -9/Materials | Core integrity fell below 20% 1474 | -9/Materials | Destroyed by S-10 Pest with Light Assault Rifle Last Messages --------------- 01401_ U-05 Engineer lays Concrete. 01419_ Critical hit (Burn: +37). 01419_ Med. Laser destroyed. 01420_ K-01 Serf destroyed. 01424_ K-01 Serf collects debris. 01426_ Critical hit (Burn: +37). 01428_ K-01 Serf collects debris. 01429_ U-05 Engineer destroyed. 01431_ R-06 Scavenger collects Lgt. Ion Engine. 01432_ K-01 Serf collects debris. 01434_ R-06 Scavenger collects Wheel. 01435_ W-16 Scout sends out distress signal. 01437_ K-01 Serf collects debris. 01442_ Aluminum Leg destroyed. 01451_ Critical hit (Destroy). 01451_ Aluminum Leg destroyed. 01452_ S-10 Pest destroyed. 01454_ Beam Rifle destroyed. 01458_ S-10 Pest destroyed. 01463_ Y-45 Defender destroyed. Map ----- +----------------------------------------------------+ | ?????????????????????????????????????????????????? | | ?????????????????????????????????????????????????? | | ?????????????????????????????????????????????????? | | ?????????????????????????????????????????????????? | | ?????????????????????????????????????????????????? | | ?????????????????????????????????????????????????? | | ?????????????????????????????????????????????????? | | ?????????????????????????????????????????????????? | | ?????????????????????????????????????????????????? | | ?????????????????????????????????????????????????? | | ?????????????????????????????????????????????????? | | ?????????????????????????????????????????????????? | | ?????????????????????????????????????????????????? | | ?????????????????????????????????????????????????? | | ?????????????????????????????????????????????????? | | ?????????????????????????????????????????????????? | | ?????????????????????????????????????????????????? | | ?????????????????????????????????????????????????? | | ?????????????????????????????????????????????????? | | ?????????????????????????????????????????????????? | | ?????????????????????????????????????????????????? | | ?????????????????????????????????"???????????????? | | ??????????? ###############??""" ??????????????? | | ?????????? =%=[# """ #????????????? | | ?????????? *=[Y%s[ ???????????????? | | ????????? !@YY#????????????????????? | | ????????? ????+#########*#????????????????????? | | ?????????# ?????????????# #????????????????????? | | ?????????# ?????????????# #????????????????????? | | ?????????# ???????????### ###??????????????????? | | ?????????# #??????????# ##########+##??????? | | ?????????# #??????????# ?????? | | ?????????# #??????????# ?????? | | ?????????# #??????????# ?????? | | ?????????# #??????????# ##########+##??????? | | ?????????# #??????????## #########???????????? | | ?????????# #???????????# # #???????????? | | ?????????# #???????????# # """ #???????????? | | ?????????# ############# # """ #???????????? | | ?????????# ! # """ #???????????? | | ?????????# =%* + #???????????? | | ?????????# ! # #???????????? | | ?????????# ############# # #???????????? | | ?????????# #???????????# % #""" #???????????? | | ?????????# ############# #"R #???????????? | | ?????????# / ## #""" #???????????? | | ?????????# ### ## # #???????????? | | ?????????# #?# ## ##### ###??#####????? | | ?????????##+##?# ## #????##????# #????? | | ????????? #?# ## #??????????# #????? | +----------------------------------------------------+ Best States ------------- Heat Dissipation 28 Coolant Potential 50 Energy Generation 10 Energy Capacity 250 Matter Stores 300 Matter Capacity 300 Sight Range 16 Terrain Scan Density 10 Armor Coverage 150 Evasion (%) 55 Recoil Reduction 2 Item Schematics ----------------- Hrd. Light Armor Plating | -9/Materials | Scanalyzed Robot Schematics ------------------ None Fabricated ------------ Nothing Alien Tech Used ----------------- None Achievements -------------- None Challenges ------------ None Game ------ Seed AlloyStealthBroadsword Manual? 0 Play Time 00:14:18 Cumulative 70.9 hours Start 2024.09.07 @ 16:59:48 End 2024.09.07 @ 17:11:10 Sessions 1 Manual Loads 0 Difficulty Rogue Special Mode None Game No. 95 Rogue 95 Adventurer 0 Explorer 0 Win Type - Total 0 Types 0/0/0/0/0/0/0/0/0 Lore% 35 Gallery% 36 Achievement% 38 Wizard Run 0 Options --------- Layout 0 ASCII 0 Keyboard 0 Movement Arrows Keybinds 0 Fullscreen 1 Font 20/SmallcapsGlow Map View 66x50 Zoom Use 0% Tactical HUD 1 Map Filters NONE Filters NONE Steam 1 RUN: 123c4291-6a9f-4a58-abc7-e8f8cc5d3614